[Event "*** Titled Tuesday Blitz"]
[Site "Chess.com"]
[Date "2021.02.02"]
[Round "1"]
[White "bugsbunny444"]
[Black "Coiote53"]
[Result "0-1"]
[WhiteElo "2620"]
[BlackElo "2354"]
[TimeControl "180+1"]
[EndTime "10:09:23 PST"]
[Termination "Coiote53 won by checkmate"]

1. Nf3 {[%clk 0:03:00.9]} 1... Nf6 {[%clk 0:02:59.3]} 2. c4 {[%clk 0:03:00.4]}
2... c5 {[%clk 0:02:59.4]} 3. g3 {[%clk 0:03:00.4]} 3... g6 {[%clk 0:02:56.1]}
4. b3 {[%clk 0:03:00.3]} 4... Bg7 {[%clk 0:02:55.5]} 5. Bb2 {[%clk 0:03:01]}
5... O-O {[%clk 0:02:56.1]} 6. Bg2 {[%clk 0:03:01.5]} 6... d5 {[%clk 0:02:55]}
7. cxd5 {[%clk 0:03:01.8]} 7... Qxd5 {[%clk 0:02:53.2]} 8. O-O {[%clk
0:02:59.9]} 8... Nc6 {[%clk 0:02:52.8]} 9. Ne5 {[%clk 0:02:57.9]} 9... Qd6
{[%clk 0:02:47.7]} 10. Nxc6 {[%clk 0:02:57.3]} 10... bxc6 {[%clk 0:02:48.6]} 11.
d3 {[%clk 0:02:57.3]} 11... Be6 {[%clk 0:02:28.3]} 12. Nd2 {[%clk 0:02:55.9]}
12... h5 {[%clk 0:02:12.4]} 13. Qc2 {[%clk 0:02:27.1]} 13... h4 {[%clk
0:02:11.6]} 14. Rac1 {[%clk 0:02:20.7]} 14... Nd7 {[%clk 0:02:09.4]} 15. Ne4
{[%clk 0:02:18.6]} 15... Qc7 {[%clk 0:02:02.3]} 16. Bxg7 {[%clk 0:02:08.7]}
16... Kxg7 {[%clk 0:02:00.4]} 17. Nxc5 {[%clk 0:02:09.6]} 17... Nxc5 {[%clk
0:01:54.9]} 18. Qxc5 {[%clk 0:02:09.3]} 18... h3 {[%clk 0:01:55.3]} 19. Qxc6
{[%clk 0:01:53.7]} 19... Qe5 {[%clk 0:01:47.4]} 20. Qe4 {[%clk 0:01:35.4]} 20...
Qb2 {[%clk 0:01:22.2]} 21. Bf3 {[%clk 0:01:14.2]} 21... Rac8 {[%clk 0:01:16.5]}
22. Rb1 {[%clk 0:00:49.2]} 22... Qxa2 {[%clk 0:01:15.6]} 23. Qd4+ {[%clk
0:00:29.2]} 23... Kg8 {[%clk 0:01:15.3]} 24. Ra1 {[%clk 0:00:27.7]} 24... Qxb3
{[%clk 0:01:14.3]} 25. Rxa7 {[%clk 0:00:26.4]} 25... Rfe8 {[%clk 0:01:14.1]} 26.
Qh4 {[%clk 0:00:20]} 26... Kg7 {[%clk 0:01:07.6]} 27. Rxe7 {[%clk 0:00:16.9]}
27... Rxe7 {[%clk 0:01:08.5]} 28. Qxe7 {[%clk 0:00:16.9]} 28... Qc3 {[%clk
0:01:09.4]} 29. Qh4 {[%clk 0:00:08.2]} 29... Qd2 {[%clk 0:01:04.3]} 30. Qd4+
{[%clk 0:00:07.3]} 30... Kh7 {[%clk 0:00:59.6]} 31. Qe3 {[%clk 0:00:06.7]} 31...
Qb2 {[%clk 0:00:53.8]} 32. g4 {[%clk 0:00:04.7]} 32... Rb8 {[%clk 0:00:38.3]}
33. d4 {[%clk 0:00:04.7]} 33... Qc2 {[%clk 0:00:34.2]} 34. d5 {[%clk 0:00:04.6]}
34... Rb1 {[%clk 0:00:32]} 35. Bg2 {[%clk 0:00:01.6]} 35... hxg2 {[%clk
0:00:31.6]} 36. Qh3+ {[%clk 0:00:01.7]} 36... Kg7 {[%clk 0:00:29.5]} 37. Rxb1
{[%clk 0:00:02.6]} 37... Qxb1+ {[%clk 0:00:28.5]} 38. Kxg2 {[%clk 0:00:03.5]}
38... Bxd5+ {[%clk 0:00:28.9]} 39. f3 {[%clk 0:00:04.4]} 39... Qc2 {[%clk
0:00:25.3]} 40. Kf2 {[%clk 0:00:04.8]} 40... Qc5+ {[%clk 0:00:23.4]} 41. Kg3
{[%clk 0:00:04.4]} 41... Qe3 {[%clk 0:00:22.9]} 42. Qf1 {[%clk 0:00:04.1]} 42...
Bc4 {[%clk 0:00:22.2]} 43. Qa1+ {[%clk 0:00:04.2]} 43... Kh7 {[%clk 0:00:21.5]}
44. Qf6 {[%clk 0:00:03.3]} 44... Qxe2 {[%clk 0:00:19.1]} 45. h4 {[%clk
0:00:03.8]} 45... Qe1+ {[%clk 0:00:17.2]} 46. Kf4 {[%clk 0:00:04.2]} 46... Qc1+
{[%clk 0:00:15.4]} 47. Kg3 {[%clk 0:00:04.3]} 47... Qg1+ {[%clk 0:00:15.7]} 48.
Kf4 {[%clk 0:00:04.7]} 48... Qh2+ {[%clk 0:00:15.5]} 49. Kg5 {[%clk 0:00:05.2]}
49... Qd2+ {[%clk 0:00:14.6]} 50. f4 {[%clk 0:00:05.2]} 50... Qd5+ {[%clk
0:00:11.6]} 51. Qe5 {[%clk 0:00:05.2]} 51... Qxe5+ {[%clk 0:00:06.5]} 52. fxe5
{[%clk 0:00:05.7]} 52... Kg7 {[%clk 0:00:05.2]} 53. h5 {[%clk 0:00:04.2]} 53...
gxh5 {[%clk 0:00:06.1]} 54. Kxh5 {[%clk 0:00:04.9]} 54... Be6 {[%clk 0:00:06.6]}
55. Kg5 {[%clk 0:00:05.2]} 55... Bd5 {[%clk 0:00:06.7]} 56. Kh5 {[%clk
0:00:05.4]} 56... Bf3 {[%clk 0:00:06.6]} 57. Kg5 {[%clk 0:00:05.9]} 57... Be4
{[%clk 0:00:06.8]} 58. Kh5 {[%clk 0:00:05.7]} 58... Bg6+ {[%clk 0:00:07.3]} 59.
Kg5 {[%clk 0:00:06.4]} 59... Bb1 {[%clk 0:00:06.2]} 60. Kh5 {[%clk 0:00:05.9]}
60... Kf8 {[%clk 0:00:06.8]} 61. Kg5 {[%clk 0:00:04.9]} 61... Ke7 {[%clk
0:00:07.2]} 62. Kf4 {[%clk 0:00:03.8]} 62... Bg6 {[%clk 0:00:07.4]} 63. Kg5
{[%clk 0:00:04.7]} 63... Ke6 {[%clk 0:00:08]} 64. Kf4 {[%clk 0:00:05.2]} 64...
Bb1 {[%clk 0:00:08.2]} 65. Kg5 {[%clk 0:00:04.9]} 65... Kxe5 {[%clk 0:00:08.5]}
66. Kh5 {[%clk 0:00:05.5]} 66... Bg6+ {[%clk 0:00:08.7]} 67. Kg5 {[%clk
0:00:05.6]} 67... Ke6 {[%clk 0:00:09]} 68. Kf4 {[%clk 0:00:05.8]} 68... Kf6
{[%clk 0:00:09.4]} 69. Kg3 {[%clk 0:00:06.1]} 69... Kg5 {[%clk 0:00:10.3]} 70.
Kf3 {[%clk 0:00:06.6]} 70... Bb1 {[%clk 0:00:10.8]} 71. Kg3 {[%clk 0:00:07.5]}
71... Bc2 {[%clk 0:00:11.2]} 72. Kf3 {[%clk 0:00:08.4]} 72... Bd1+ {[%clk
0:00:11.6]} 73. Kg3 {[%clk 0:00:09.3]} 73... Bxg4 {[%clk 0:00:12.2]} 74. Kh2
{[%clk 0:00:10.2]} 74... f5 {[%clk 0:00:12.8]} 75. Kg3 {[%clk 0:00:11.1]} 75...
Bd1 {[%clk 0:00:12.5]} 76. Kf2 {[%clk 0:00:12]} 76... Ba4 {[%clk 0:00:12.9]} 77.
Ke1 {[%clk 0:00:12.9]} 77... Kf4 {[%clk 0:00:13.5]} 78. Kf2 {[%clk 0:00:13.8]}
78... Bb5 {[%clk 0:00:13.1]} 79. Kg2 {[%clk 0:00:14.7]} 79... Ke3 {[%clk
0:00:13.1]} 80. Kg1 {[%clk 0:00:15.6]} 80... f4 {[%clk 0:00:13.6]} 81. Kh2
{[%clk 0:00:16]} 81... f3 {[%clk 0:00:13.9]} 82. Kg1 {[%clk 0:00:16.6]} 82...
f2+ {[%clk 0:00:14.2]} 83. Kh2 {[%clk 0:00:17.5]} 83... Bc6 {[%clk 0:00:14.2]}
84. Kg3 {[%clk 0:00:15.5]} 84... f1=Q {[%clk 0:00:14.1]} 85. Kh4 {[%clk
0:00:15.7]} 85... Qg2 {[%clk 0:00:13.9]} 86. Kh5 {[%clk 0:00:15.5]} 86... Be8+
{[%clk 0:00:14.2]} 87. Kh4 {[%clk 0:00:15.5]} 87... Bd7 {[%clk 0:00:13.5]} 88.
Kh5 {[%clk 0:00:15.6]} 88... Qg4+ {[%clk 0:00:13]} 89. Kh6 {[%clk 0:00:16]}
89... Kf4 {[%clk 0:00:12.9]} 90. Kh7 {[%clk 0:00:16.3]} 90... Kf5 {[%clk
0:00:12.6]} 91. Kh6 {[%clk 0:00:17.2]} 91... Kf6 {[%clk 0:00:11.9]} 92. Kh7
{[%clk 0:00:17.6]} 92... Qg7# {[%clk 0:00:12.8]} 0-1

[Event "*** Titled Tuesday Blitz"]
[Site "Chess.com"]
[Date "2021.02.02"]
[Round "1"]
[White "jerry_77"]
[Black "Paralinch"]
[Result "0-1"]
[WhiteElo "2455"]
[BlackElo "2884"]
[TimeControl "180+1"]
[EndTime "10:09:31 PST"]
[Termination "Paralinch won by resignation"]

1. e4 {[%clk 0:03:00.9]} 1... c5 {[%clk 0:02:57.6]} 2. Nf3 {[%clk 0:03:00]} 2...
d6 {[%clk 0:02:58.1]} 3. d4 {[%clk 0:02:59.4]} 3... cxd4 {[%clk 0:02:59]} 4.
Nxd4 {[%clk 0:02:59.9]} 4... Nf6 {[%clk 0:02:59.7]} 5. Nc3 {[%clk 0:03:00.2]}
5... a6 {[%clk 0:03:00.3]} 6. Be3 {[%clk 0:02:54.7]} 6... e5 {[%clk 0:02:58.7]}
7. Nb3 {[%clk 0:02:54.2]} 7... Be6 {[%clk 0:02:57.8]} 8. h3 {[%clk 0:02:54.1]}
8... Be7 {[%clk 0:02:52.9]} 9. f4 {[%clk 0:02:50.1]} 9... Nc6 {[%clk 0:02:41.8]}
10. f5 {[%clk 0:02:48.6]} 10... Bxb3 {[%clk 0:02:41.4]} 11. axb3 {[%clk
0:02:48.9]} 11... d5 {[%clk 0:02:41.8]} 12. Nxd5 {[%clk 0:02:42.8]} 12... Nxe4
{[%clk 0:02:29.9]} 13. Nxe7 {[%clk 0:02:15.9]} 13... Qxe7 {[%clk 0:02:28.3]} 14.
Qg4 {[%clk 0:02:11]} 14... Nf6 {[%clk 0:02:02.5]} 15. Qh4 {[%clk 0:01:57.5]}
15... O-O {[%clk 0:01:54.4]} 16. Be2 {[%clk 0:01:37]} 16... Nd4 {[%clk
0:01:53.9]} 17. Bd3 {[%clk 0:01:30.5]} 17... e4 {[%clk 0:01:51.1]} 18. O-O
{[%clk 0:01:03.9]} 18... Nxb3 {[%clk 0:01:25.2]} 19. cxb3 {[%clk 0:00:46.9]}
19... exd3 {[%clk 0:01:24.2]} 20. Bd4 {[%clk 0:00:47]} 20... Rfd8 {[%clk
0:01:23]} 21. Rad1 {[%clk 0:00:39.3]} 21... Nd5 {[%clk 0:00:54]} 22. Qg3 {[%clk
0:00:33.3]} 22... f6 {[%clk 0:00:50.1]} 23. Rxd3 {[%clk 0:00:22.9]} 23... Nb4
{[%clk 0:00:48]} 24. Re3 {[%clk 0:00:22.2]} 24... Qf7 {[%clk 0:00:47.9]} 25. Bb6
{[%clk 0:00:20.3]} 25... Re8 {[%clk 0:00:46.5]} 26. Rxe8+ {[%clk 0:00:17.9]}
26... Rxe8 {[%clk 0:00:47.4]} 27. Bd4 {[%clk 0:00:16.4]} 27... h6 {[%clk
0:00:45.6]} 28. Bc3 {[%clk 0:00:16.6]} 28... Nd5 {[%clk 0:00:43.7]} 29. Kh2
{[%clk 0:00:15.9]} 29... Ne3 {[%clk 0:00:43.4]} 30. Re1 {[%clk 0:00:14.6]} 30...
Nxf5 {[%clk 0:00:42]} 31. Rxe8+ {[%clk 0:00:14.8]} 31... Qxe8 {[%clk 0:00:42.9]}
32. Qc7 {[%clk 0:00:15.3]} 32... Qc6 {[%clk 0:00:37.4]} 33. Qd8+ {[%clk
0:00:15.2]} 33... Kh7 {[%clk 0:00:37.2]} 34. Qd3 {[%clk 0:00:15.8]} 34... Qd6+
{[%clk 0:00:36.9]} 35. Qxd6 {[%clk 0:00:14.4]} 35... Nxd6 {[%clk 0:00:37.8]} 36.
Kg3 {[%clk 0:00:15.1]} 36... Kg6 {[%clk 0:00:38.2]} 37. Kf4 {[%clk 0:00:15.5]}
37... Kf7 {[%clk 0:00:38.7]} 38. Ke3 {[%clk 0:00:15.3]} 38... Ke6 {[%clk
0:00:38.7]} 39. Bd2 {[%clk 0:00:15.3]} 39... h5 {[%clk 0:00:38.1]} 40. Kd4
{[%clk 0:00:15.7]} 40... Nf5+ {[%clk 0:00:37.7]} 41. Kc5 {[%clk 0:00:15.9]}
41... Kd7 {[%clk 0:00:37.6]} 42. Kb6 {[%clk 0:00:16.3]} 42... Kc8 {[%clk
0:00:38.1]} 43. Bf4 {[%clk 0:00:16.6]} 43... Nh4 {[%clk 0:00:36.6]} 44. g3
{[%clk 0:00:16.8]} 44... Nf5 {[%clk 0:00:35]} 45. g4 {[%clk 0:00:17.2]} 45...
hxg4 {[%clk 0:00:33.9]} 46. hxg4 {[%clk 0:00:18.1]} 46... Ne7 {[%clk 0:00:33.7]}
47. Kc5 {[%clk 0:00:17.8]} 47... Kd7 {[%clk 0:00:33.1]} 48. Bg3 {[%clk
0:00:17.7]} 48... Nc6 {[%clk 0:00:31.1]} 49. Kb6 {[%clk 0:00:17.9]} 49... Kc8
{[%clk 0:00:31.4]} 50. Kc5 {[%clk 0:00:18.5]} 50... Ne5 {[%clk 0:00:30.6]} 51.
g5 {[%clk 0:00:17.6]} 51... Nd7+ {[%clk 0:00:27.3]} 52. Kd6 {[%clk 0:00:17.8]}
52... fxg5 {[%clk 0:00:28.2]} 53. Ke6 {[%clk 0:00:18.1]} 53... Nc5+ {[%clk
0:00:27.9]} 54. Kf5 {[%clk 0:00:16.9]} 54... Nxb3 {[%clk 0:00:28.8]} 55. Kxg5
{[%clk 0:00:17.1]} 55... Kd7 {[%clk 0:00:28.9]} 56. Be5 {[%clk 0:00:17.4]} 56...
Ke6 {[%clk 0:00:26.9]} 57. Bxg7 {[%clk 0:00:17.6]} 57... Kd5 {[%clk 0:00:27.5]}
58. Kf4 {[%clk 0:00:18.2]} 58... Kc4 {[%clk 0:00:27.9]} 59. Ke3 {[%clk
0:00:18.9]} 59... b5 {[%clk 0:00:27.2]} 60. Ke2 {[%clk 0:00:19.1]} 60... Nc5
{[%clk 0:00:25.8]} 61. Kd2 {[%clk 0:00:18.9]} 61... Kb3 {[%clk 0:00:26.2]} 62.
Kc1 {[%clk 0:00:19.2]} 62... Nd3+ {[%clk 0:00:26.3]} 63. Kb1 {[%clk 0:00:19.7]}
63... a5 {[%clk 0:00:26.5]} 64. Bf6 {[%clk 0:00:20.3]} 64... a4 {[%clk
0:00:26.9]} 65. Bg7 {[%clk 0:00:20.6]} 65... Nc5 {[%clk 0:00:24.3]} 66. Bh8
{[%clk 0:00:20.9]} 66... Ne4 {[%clk 0:00:22.8]} 67. Bg7 {[%clk 0:00:21.2]} 67...
Nd2+ {[%clk 0:00:21.3]} 68. Kc1 {[%clk 0:00:21.6]} 68... Nf3 {[%clk 0:00:21.4]}
69. Kb1 {[%clk 0:00:21.7]} 69... b4 {[%clk 0:00:20.9]} 70. Bf8 {[%clk
0:00:21.5]} 70... Kc4 {[%clk 0:00:21.1]} 71. Kc2 {[%clk 0:00:21.2]} 71... Nd4+
{[%clk 0:00:20.4]} 72. Kc1 {[%clk 0:00:21.5]} 72... Ne6 {[%clk 0:00:20.9]} 73.
Be7 {[%clk 0:00:21.4]} 73... Nc5 {[%clk 0:00:19.2]} 74. Bf6 {[%clk 0:00:21]}
74... Kb3 {[%clk 0:00:18.5]} 75. Bd4 {[%clk 0:00:20]} 75... Ne4 {[%clk
0:00:17.8]} 76. Be5 {[%clk 0:00:20]} 76... Nf2 {[%clk 0:00:17.4]} 77. Bd4 {[%clk
0:00:19.5]} 77... Ne4 {[%clk 0:00:16.6]} 78. Be5 {[%clk 0:00:19.3]} 78... Ka2
{[%clk 0:00:16.8]} 79. Bg7 {[%clk 0:00:17.3]} 79... Nf2 {[%clk 0:00:13.3]} 80.
Kc2 {[%clk 0:00:17.1]} 80... b3+ {[%clk 0:00:13.7]} 81. Kd2 {[%clk 0:00:14.5]}
81... Ne4+ {[%clk 0:00:13.2]} 82. Kc1 {[%clk 0:00:14.6]} 82... Nc5 {[%clk
0:00:12]} 83. Kd2 {[%clk 0:00:14.5]} 83... Ne6 {[%clk 0:00:12.6]} 84. Be5 {[%clk
0:00:14.3]} 84... Nd8 {[%clk 0:00:12.6]} 85. Bd4 {[%clk 0:00:14.3]} 85... Nc6
{[%clk 0:00:13]} 86. Bc3 {[%clk 0:00:14.6]} 86... Ne7 {[%clk 0:00:12.9]} 87. Kc1
{[%clk 0:00:14.5]} 87... Nd5 {[%clk 0:00:13.3]} 88. Bd4 {[%clk 0:00:15]} 88...
Nf4 {[%clk 0:00:13.3]} 89. Kd2 {[%clk 0:00:14.5]} 89... Ne6 {[%clk 0:00:13.5]}
90. Be5 {[%clk 0:00:14.8]} 90... Nc5 {[%clk 0:00:13.2]} 91. Bd4 {[%clk
0:00:15.1]} 91... Nd7 {[%clk 0:00:13.4]} 92. Bg7 {[%clk 0:00:15]} 92... Nb6
{[%clk 0:00:13.5]} 93. Kc1 {[%clk 0:00:15.1]} 93... Nc4 {[%clk 0:00:13.5]} 94.
Bd4 {[%clk 0:00:15.3]} 94... Nxb2 {[%clk 0:00:11]} 95. Bxb2 {[%clk 0:00:15.4]}
95... a3 {[%clk 0:00:11.6]} 96. Bxa3 {[%clk 0:00:15.8]} 96... Kxa3 {[%clk
0:00:12.5]} 97. Kb1 {[%clk 0:00:16.4]} 97... b2 {[%clk 0:00:13.1]} 0-1

[Event "*** Titled Tuesday Blitz"]
[Site "Chess.com"]
[Date "2021.02.02"]
[Round "1"]
[White "Yurovskykh_Oleksandr"]
[Black "Oleksandr_Bortnyk"]
[Result "1-0"]
[WhiteElo "2484"]
[BlackElo "2901"]
[TimeControl "180+1"]
[EndTime "10:10:26 PST"]
[Termination "Yurovskykh_Oleksandr won on time"]

1. d4 {[%clk 0:02:58.7]} 1... d6 {[%clk 0:02:55.1]} 2. Nf3 {[%clk 0:02:56.4]}
2... Nf6 {[%clk 0:02:53.5]} 3. Bg5 {[%clk 0:02:55.6]} 3... Nbd7 {[%clk
0:02:52.9]} 4. e3 {[%clk 0:02:55.5]} 4... g6 {[%clk 0:02:51.4]} 5. c4 {[%clk
0:02:55.3]} 5... Bg7 {[%clk 0:02:52.1]} 6. Nc3 {[%clk 0:02:55.7]} 6... O-O
{[%clk 0:02:52.8]} 7. Be2 {[%clk 0:02:55.8]} 7... c6 {[%clk 0:02:53.5]} 8. O-O
{[%clk 0:02:55.7]} 8... Qc7 {[%clk 0:02:48.9]} 9. Qc2 {[%clk 0:02:55.5]} 9... e5
{[%clk 0:02:49.3]} 10. Rfd1 {[%clk 0:02:55.7]} 10... a5 {[%clk 0:02:48.3]} 11.
Rac1 {[%clk 0:02:54.5]} 11... Re8 {[%clk 0:02:48.8]} 12. b3 {[%clk 0:02:41.5]}
12... exd4 {[%clk 0:02:30.3]} 13. Nxd4 {[%clk 0:02:41]} 13... Nc5 {[%clk
0:02:30.4]} 14. Bf4 {[%clk 0:02:32.2]} 14... Nfe4 {[%clk 0:02:13.4]} 15. Nxe4
{[%clk 0:02:27.6]} 15... Nxe4 {[%clk 0:02:14.3]} 16. Bf3 {[%clk 0:02:19.3]}
16... Nc5 {[%clk 0:02:09]} 17. a3 {[%clk 0:01:51]} 17... Be5 {[%clk 0:02:05.8]}
18. Bg3 {[%clk 0:01:43.6]} 18... Qb6 {[%clk 0:01:57.4]} 19. Rb1 {[%clk
0:01:39.2]} 19... Ne6 {[%clk 0:01:29.6]} 20. Nxe6 {[%clk 0:01:32.8]} 20... Bxe6
{[%clk 0:01:30.5]} 21. b4 {[%clk 0:01:28.5]} 21... axb4 {[%clk 0:01:24.1]} 22.
axb4 {[%clk 0:01:27.3]} 22... Qc7 {[%clk 0:01:02.1]} 23. Be2 {[%clk 0:01:14.7]}
23... Ra3 {[%clk 0:00:56.3]} 24. Bxe5 {[%clk 0:00:59.6]} 24... dxe5 {[%clk
0:00:57.2]} 25. c5 {[%clk 0:01:00.2]} 25... Rea8 {[%clk 0:00:56.1]} 26. Bc4
{[%clk 0:00:59.6]} 26... Qe7 {[%clk 0:00:56.2]} 27. Rd6 {[%clk 0:00:48.3]} 27...
Bxc4 {[%clk 0:00:48]} 28. Qxc4 {[%clk 0:00:49.2]} 28... Ra1 {[%clk 0:00:47.6]}
29. Qc1 {[%clk 0:00:49.1]} 29... R1a2 {[%clk 0:00:46.3]} 30. g3 {[%clk
0:00:40.5]} 30... Qg5 {[%clk 0:00:45.1]} 31. Rd2 {[%clk 0:00:29.9]} 31... Qf5
{[%clk 0:00:43.8]} 32. Rxa2 {[%clk 0:00:28.4]} 32... Rxa2 {[%clk 0:00:44.7]} 33.
Rb2 {[%clk 0:00:28.2]} 33... Ra4 {[%clk 0:00:43.9]} 34. Qd1 {[%clk 0:00:26.7]}
34... Ra8 {[%clk 0:00:44]} 35. Rd2 {[%clk 0:00:26.4]} 35... Kg7 {[%clk 0:00:44]}
36. Rd8 {[%clk 0:00:22.3]} 36... Rxd8 {[%clk 0:00:41.4]} 37. Qxd8 {[%clk
0:00:20.5]} 37... Qb1+ {[%clk 0:00:42.3]} 38. Kg2 {[%clk 0:00:21.1]} 38... Qxb4
{[%clk 0:00:43.2]} 39. Qd6 {[%clk 0:00:20.4]} 39... Qe4+ {[%clk 0:00:43.4]} 40.
Kg1 {[%clk 0:00:20.8]} 40... Qd5 {[%clk 0:00:44.3]} 41. Qe7 {[%clk 0:00:20.8]}
41... h5 {[%clk 0:00:44.4]} 42. h4 {[%clk 0:00:19.5]} 42... e4 {[%clk
0:00:39.2]} 43. Kg2 {[%clk 0:00:18.6]} 43... Qf5 {[%clk 0:00:39.1]} 44. Qd6
{[%clk 0:00:17.4]} 44... Qf3+ {[%clk 0:00:37.2]} 45. Kg1 {[%clk 0:00:17.5]}
45... Qf6 {[%clk 0:00:38.1]} 46. Qc7 {[%clk 0:00:16.8]} 46... Qc3 {[%clk
0:00:33.6]} 47. Qe7 {[%clk 0:00:16.7]} 47... Qb2 {[%clk 0:00:24.8]} 48. Kg2
{[%clk 0:00:15.3]} 48... Qc3 {[%clk 0:00:20.6]} 49. Kg1 {[%clk 0:00:12.3]} 49...
Qc4 {[%clk 0:00:21.1]} 50. Qe5+ {[%clk 0:00:11.6]} 50... Kg8 {[%clk 0:00:21.8]}
51. Kg2 {[%clk 0:00:12.1]} 51... Qd5 {[%clk 0:00:20.2]} 52. Qe8+ {[%clk
0:00:11.3]} 52... Kg7 {[%clk 0:00:20.4]} 53. Qe7 {[%clk 0:00:12.2]} 53... Qf5
{[%clk 0:00:18.8]} 54. Kg1 {[%clk 0:00:12.1]} 54... Kg8 {[%clk 0:00:13.6]} 55.
Qe8+ {[%clk 0:00:12]} 55... Kh7 {[%clk 0:00:14]} 56. Qe7 {[%clk 0:00:12.9]}
56... Kg7 {[%clk 0:00:14.7]} 57. Kg2 {[%clk 0:00:13.2]} 57... Qd5 {[%clk
0:00:07.6]} 58. Kg1 {[%clk 0:00:13.2]} 58... Kh7 {[%clk 0:00:07.5]} 59. Kg2
{[%clk 0:00:13.2]} 59... Kg8 {[%clk 0:00:07.5]} 60. Kg1 {[%clk 0:00:13.6]} 60...
Qd1+ {[%clk 0:00:07.1]} 61. Kg2 {[%clk 0:00:13.8]} 61... Qf3+ {[%clk 0:00:07.4]}
62. Kg1 {[%clk 0:00:14.3]} 62... Qf5 {[%clk 0:00:08.3]} 63. Qe8+ {[%clk
0:00:14.3]} 63... Kh7 {[%clk 0:00:07.5]} 64. Qe7 {[%clk 0:00:15.2]} 64... Qd5
{[%clk 0:00:06.4]} 65. Kg2 {[%clk 0:00:14.7]} 65... Qc4 {[%clk 0:00:06.6]} 66.
Kg1 {[%clk 0:00:14.7]} 66... Kg8 {[%clk 0:00:06.5]} 67. Kg2 {[%clk 0:00:14.9]}
67... Qc3 {[%clk 0:00:05.5]} 68. Qe8+ {[%clk 0:00:13.9]} 68... Kg7 {[%clk
0:00:05.8]} 69. Qe7 {[%clk 0:00:14.8]} 69... Qb2 {[%clk 0:00:05.1]} 70. Kg1
{[%clk 0:00:14.4]} 70... b5 {[%clk 0:00:05.3]} 71. cxb6 {[%clk 0:00:13.8]} 71...
Qb1+ {[%clk 0:00:03.5]} 72. Kg2 {[%clk 0:00:13.5]} 72... Qxb6 {[%clk 0:00:04.4]}
73. Qe5+ {[%clk 0:00:13.4]} 73... Kg8 {[%clk 0:00:04.3]} 74. Qxe4 {[%clk
0:00:14.3]} 74... Qc7 {[%clk 0:00:03.9]} 75. Qc4 {[%clk 0:00:13]} 75... c5
{[%clk 0:00:04.1]} 76. Kf3 {[%clk 0:00:13.4]} 76... Qb7+ {[%clk 0:00:04.3]} 77.
Ke2 {[%clk 0:00:13.6]} 77... Qb2+ {[%clk 0:00:04.3]} 78. Kf3 {[%clk 0:00:13.9]}
78... Qf6+ {[%clk 0:00:04.6]} 79. Ke2 {[%clk 0:00:14.2]} 79... Qb6 {[%clk
0:00:04.8]} 80. Kf3 {[%clk 0:00:14.3]} 80... Kf8 {[%clk 0:00:04.9]} 81. Ke2
{[%clk 0:00:14.5]} 81... Qc6 {[%clk 0:00:05]} 82. Kd3 {[%clk 0:00:14.5]} 82...
Ke7 {[%clk 0:00:04.7]} 83. Qc2 {[%clk 0:00:12.1]} 83... Qb5+ {[%clk 0:00:03]}
84. Kc3 {[%clk 0:00:12.2]} 84... Qb4+ {[%clk 0:00:02.4]} 85. Kd3 {[%clk
0:00:12.3]} 85... Ke6 {[%clk 0:00:03.3]} 86. Qa2+ {[%clk 0:00:09.4]} 86... Kf6
{[%clk 0:00:03.5]} 87. Qa6+ {[%clk 0:00:09.6]} 87... Kf5 {[%clk 0:00:03.3]} 88.
Qc8+ {[%clk 0:00:08.3]} 88... Kf6 {[%clk 0:00:03.9]} 89. Qc6+ {[%clk 0:00:07]}
89... Kg7 {[%clk 0:00:04.3]} 90. Qd5 {[%clk 0:00:05.4]} 90... Qb1+ {[%clk
0:00:04.5]} 91. Ke2 {[%clk 0:00:05.6]} 91... Qb2+ {[%clk 0:00:04.8]} 92. Kf3
{[%clk 0:00:05.8]} 92... Qc3 {[%clk 0:00:04.8]} 93. Ke2 {[%clk 0:00:05.8]} 93...
c4 {[%clk 0:00:05]} 94. Qc5 {[%clk 0:00:05.4]} 94... Qd3+ {[%clk 0:00:04.4]} 95.
Ke1 {[%clk 0:00:05.3]} 95... c3 {[%clk 0:00:04.5]} 96. Qd4+ {[%clk 0:00:05.2]}
96... Qxd4 {[%clk 0:00:04.1]} 97. exd4 {[%clk 0:00:06.1]} 97... Kf6 {[%clk
0:00:04]} 98. Ke2 {[%clk 0:00:06.5]} 98... Kf5 {[%clk 0:00:03.6]} 99. f3 {[%clk
0:00:06.5]} 99... g5 {[%clk 0:00:02.7]} 100. hxg5 {[%clk 0:00:07.4]} 100... Kxg5
{[%clk 0:00:03.1]} 101. Kd3 {[%clk 0:00:07.6]} 101... f5 {[%clk 0:00:03.5]} 102.
Kxc3 {[%clk 0:00:07.3]} 102... f4 {[%clk 0:00:04.4]} 103. gxf4+ {[%clk
0:00:07.6]} 103... Kxf4 {[%clk 0:00:05.3]} 104. Kd3 {[%clk 0:00:07.6]} 104...
Kxf3 {[%clk 0:00:05.4]} 105. d5 {[%clk 0:00:07.8]} 105... h4 {[%clk 0:00:06.3]}
106. d6 {[%clk 0:00:08.4]} 106... h3 {[%clk 0:00:07.2]} 107. d7 {[%clk 0:00:09]}
107... h2 {[%clk 0:00:08.1]} 108. d8=Q {[%clk 0:00:09.6]} 108... Kg2 {[%clk
0:00:09]} 109. Qd5+ {[%clk 0:00:09.1]} 109... Kg1 {[%clk 0:00:09.5]} 110. Qg5+
{[%clk 0:00:08.9]} 110... Kf1 {[%clk 0:00:09]} 111. Qf4+ {[%clk 0:00:09.2]}
111... Kg2 {[%clk 0:00:09.1]} 112. Qg4+ {[%clk 0:00:09.4]} 112... Kf2 {[%clk
0:00:09]} 113. Qh3 {[%clk 0:00:09.7]} 113... Kg1 {[%clk 0:00:09.5]} 114. Qg3+
{[%clk 0:00:09.9]} 114... Kh1 {[%clk 0:00:10.2]} 115. Qe1+ {[%clk 0:00:10]}
115... Kg2 {[%clk 0:00:11.1]} 116. Qe2+ {[%clk 0:00:10.3]} 116... Kg1 {[%clk
0:00:11.6]} 117. Ke3 {[%clk 0:00:10.5]} 1-0

[Event "*** Titled Tuesday Blitz"]
[Site "Chess.com"]
[Date "2021.02.02"]
[Round "2"]
[White "MoreChessJulia"]
[Black "Kassimov_B"]
[Result "0-1"]
[WhiteElo "2145"]
[BlackElo "2413"]
[TimeControl "180+1"]
[EndTime "10:14:31 PST"]
[Termination "Kassimov_B won by resignation"]

1. d4 {[%clk 0:02:59.8]} 1... Nf6 {[%clk 0:03:00.6]} 2. Bg5 {[%clk 0:02:59.1]}
2... g6 {[%clk 0:03:01.5]} 3. Nd2 {[%clk 0:02:56.2]} 3... Bg7 {[%clk 0:02:59.7]}
4. f4 {[%clk 0:02:55.7]} 4... O-O {[%clk 0:02:57.9]} 5. e3 {[%clk 0:02:55.2]}
5... d6 {[%clk 0:02:55.3]} 6. Bd3 {[%clk 0:02:55]} 6... h6 {[%clk 0:02:49]} 7.
Bxf6 {[%clk 0:02:54]} 7... exf6 {[%clk 0:02:46.9]} 8. Qf3 {[%clk 0:02:52]} 8...
Nc6 {[%clk 0:02:44.2]} 9. c3 {[%clk 0:02:51.5]} 9... f5 {[%clk 0:02:42]} 10.
O-O-O {[%clk 0:02:50.4]} 10... Bd7 {[%clk 0:02:40.9]} 11. Nh3 {[%clk 0:02:49.4]}
11... b5 {[%clk 0:02:38.1]} 12. Nf2 {[%clk 0:02:47.1]} 12... b4 {[%clk
0:02:38.1]} 13. c4 {[%clk 0:02:46.3]} 13... Re8 {[%clk 0:02:36.1]} 14. d5 {[%clk
0:02:45.5]} 14... Na5 {[%clk 0:02:33.3]} 15. e4 {[%clk 0:02:42.7]} 15... fxe4
{[%clk 0:02:32.1]} 16. Ndxe4 {[%clk 0:02:40.9]} 16... f5 {[%clk 0:02:31.1]} 17.
Nd2 {[%clk 0:02:37.9]} 17... Qf6 {[%clk 0:02:31.5]} 0-1